fUSD/lending_fUSD_20260127
["ID","MTS","AMOUNT","RATE_DAILY","PERIOD"]
[403730928,1769513449509,-250.0,0.0004323,15]
[403730929,1769513449520,-261.94346066,0.0004323,15]
[403730930,1769513449530,-250.0,0.0004323,15]
[403730931,1769513449539,-250.0,0.0004323,15]
[403730932,1769513449550,-250.0,0.0004323,15]
[403730933,1769513449559,-194.72792766,0.0004323,15]
[403730934,1769513449570,-500.0,0.0004323,15]
[403730935,1769513449580,-201.93286099,0.0004323,15]
[403730936,1769513449589,-500.0,0.0004323,15]
[403730937,1769513449598,-209.40437684,0.0004323,15]
[403730938,1769513449607,-217.15233878,0.0004323,15]
[403730939,1769513449617,-225.18697532,0.0004323,15]
[403730940,1769513449626,-500.0,0.0004323,15]
[403730941,1769513449638,-250.0,0.0004323,15]
[403730942,1769513449647,-233.51889341,0.0004323,15]
[403730943,1769513449657,-500.0,0.0004323,15]
[403730944,1769513449666,-202.66934458,0.0004323,15]
[403730945,1769513449675,-242.15909246,0.0004323,15]
[403730946,1769513449684,-250.0,0.0004323,15]
[403730947,1769513449694,-251.11897888,0.0004323,15]
[403730948,1769513449704,-500.0,0.0004323,15]
[403730949,1769513449715,-260.4103811,0.0004323,15]
[403730950,1769513449724,-500.0,0.0004323,15]
[403730951,1769513449976,-174.67770628,0.0004323,15]
[403730952,1769513449986,-250.0,0.0004323,15]
[403730953,1769513449997,-500.0,0.0004323,15]
[403730954,1769513450006,-250.0,0.0004323,15]
[403730955,1769513450015,-270.0455652,0.0004323,15]
[403730956,1769513450025,-8426.0,0.00043235,7]
[403730957,1769513450034,-151.0,0.00043238,120]
[403730958,1769513450043,-57199.7636817,0.00043241,2]
[403730959,1769513450963,-1257.81074298,0.00016438,2]
[403730960,1769513450979,-164.28925702,0.00016438,2]
[403730961,1769513450990,-500.0,0.0004323,15]
[403730962,1769513451000,-250.0,0.0004323,15]
[403730963,1769513451010,-280.03725112,0.0004323,15]
[403730964,1769513451020,-250.0,0.0004323,15]
[403730965,1769513451030,-500.0,0.0004323,15]
[403730966,1769513451039,-290.39862941,0.0004323,15]
[403730967,1769513451049,-250.0,0.0004323,15]
[403730968,1769513451059,-33173.98104166,0.00043241,2]
[403730969,1769513451070,-318.19988001,0.00043241,2]
[403730970,1769513451087,-177.71711,0.00038356,120]
[403730971,1769513451096,-456.133095,0.00043241,2]
[403730972,1769513451107,-428.14468468,0.00043241,2]
[403730973,1769513451119,-2505.35903128,0.00043241,2]
[403730974,1769513451131,-4095.31242003,0.00043241,2]
[403730975,1769513451146,-4673.77188285,0.00043241,2]
[403730976,1769513451165,-180.9239376,0.00015995,2]
[403730977,1769513451174,-36987.74926258,0.00043241,2]
[403730978,1769513451186,-6094.98962257,0.00043241,2]
[403731022,1769514433644,-156.98510113,0.00015392,2]
[403731032,1769514508546,-268.06489887,0.00015392,2]
[403731033,1769514508568,-33.93510113,0.00015427,2]
[403731036,1769514564540,245.52,0.00015236,2]
[403731037,1769514565892,-216.06489887,0.00015427,2]
[403731038,1769514565916,-239.55936865,0.00015463,2]
[403731039,1769514570479,-302.0,0.00015463,2]
[403731045,1769514628709,-361.14335297,0.00015463,2]
[403731046,1769514632274,-988.28202685,0.00015463,2]
[403731047,1769514632286,-376.91525153,0.00015463,2]
[403731048,1769514632296,-279.0,0.00015463,2]
[403731049,1769514632306,-250.0,0.00015524,2]
[403731050,1769514632316,-1200.0,0.00015588,2]
[403731051,1769514632326,-151.98410352,0.00015588,2]
[403731052,1769514632338,-148.01589648,0.00015588,2]
[403731053,1769514632348,-195.0,0.00015588,2]
[403731054,1769514632357,-233.50966177,0.00015588,2]
[403731055,1769514632369,-66.49033823,0.00015588,2]
[403731056,1769514632378,-488.96629318,0.00015588,2]
[403731057,1769514632390,-11.03370682,0.00015588,2]
[403731058,1769514632400,-500.0,0.00015588,2]
[403731059,1769514632410,-631.24783007,0.00015588,2]
[403731060,1769514632419,-500.0,0.00015588,2]
[403731061,1769514632428,-6742.8178948,0.00015589,2]
[403731062,1769514632440,-698.60816711,0.00015589,2]
[403731063,1769514632459,-5003.42193203,0.00015589,2]
[403731064,1769514632473,-5262.66200606,0.00015589,2]
[403731065,1769514632483,-195.0,0.00015604,2]
[403731066,1769514632492,-300.0,0.00015667,2]
[403731067,1769514632503,-253.34251032,0.00015667,2]
[403731068,1769514632513,-8677.61,0.00015681,2]
[403731069,1769514632522,-151.0,0.0001573,2]
[403731070,1769514632531,-151.0,0.00015732,2]
[403731071,1769514632542,-245.61861245,0.00015959,2]
[403731072,1769514632551,-182.23441398,0.00015959,2]
[403731073,1769514632561,-500.0,0.00015959,2]
[403731074,1769514632571,-565.99055609,0.00015959,2]
[403731075,1769514632580,-150.0,0.00015959,2]
[403731076,1769514632590,-419.0281,0.0001596,2]
[403731077,1769514632599,-450.1833,0.0001596,2]
[403731078,1769514632608,-2500.0,0.0001596,2]
[403731079,1769514632617,-158.43715575,0.0001597,2]
[403731081,1769514632627,-2673.90742353,0.0001597,2]
[403731083,1769514632636,-1050.88046112,0.00016059,5]
[403731085,1769514632646,-500.0,0.00016059,2]
[403731086,1769514632655,-492.59366018,0.00016059,2]
[403731087,1769514632664,-1618.124,0.00016059,2]
[403731088,1769514632674,-184.843,0.00016059,2]
[403731089,1769514632683,-500.0,0.00016059,2]
[403731090,1769514632692,-500.0,0.00016059,2]
[403731091,1769514632701,-500.0,0.00016059,2]
[403731092,1769514632710,-500.0,0.00016059,2]
[403731093,1769514632720,-7874.78,0.0001607,2]
[403731094,1769514632729,-384.64,0.00016135,2]
[403731095,1769514632738,-4162.1972,0.0001616,2]
[403731096,1769514632747,-1000.0,0.0001616,2]
[403731097,1769514632756,-425.05,0.00016162,2]
[403731098,1769514632766,-17235.85,0.0001619,2]
[403731099,1769514632775,-28142.70801062,0.00016245,2]
[403731100,1769514632787,-966.31886825,0.00016245,2]
[403731101,1769514632798,-1326.4511873,0.00016245,2]
[403731102,1769514632819,-3071.08193383,0.00016245,2]
[403731103,1769514632828,-773.0,0.00016246,2]
[403731104,1769514632838,-336.49132665,0.00016246,2]
[403731105,1769514632847,-500.0,0.00016259,2]
[403731107,1769514632857,-500.0,0.00016259,2]
[403731108,1769514632866,-988.0,0.00016279,2]
[403731110,1769514632875,-1484.0,0.00016311,2]
[403731112,1769514632884,-500.0,0.00016438,2]
[403731114,1769514632894,-599.37099004,0.00016438,2]
[403731117,1769514632904,-500.0,0.00016438,2]
[403731118,1769514632913,-358.07323626,0.00016438,2]
[403731120,1769514632922,-1828.19,0.00016438,2]
[403731122,1769514632932,-1828.19,0.00016438,2]
[403731124,1769514632941,-1828.19,0.00016438,2]
[403731126,1769514632950,-94.03543359,0.00016438,2]
[403731128,1769514632962,-1518.79195812,0.00016438,2]
[403731130,1769514632973,-215.36260829,0.00016438,2]
[403731132,1769514632982,-735.33420847,0.00016438,2]
[403731134,1769514632993,-1092.85579153,0.00016438,2]
[403731136,1769514633003,-1828.19,0.00016438,2]
[403731138,1769514633012,-1828.19,0.00016438,2]
[403731140,1769514633021,-1828.19,0.00016438,2]
[403731142,1769514633030,-654.22391758,0.00016438,2]
[403731162,1769514638333,-500.0,0.00016438,2]
[403731163,1769514638452,-673.96608242,0.00016438,2]
[403731164,1769514638464,-531.53886649,0.00016438,2]
[403731165,1769514638480,-1296.65113351,0.00016438,2]
[403731166,1769514638489,-1828.19,0.00016438,2]
[403731167,1769514638499,-1828.19,0.00016438,2]
[403731168,1769514638509,-1828.19,0.00016438,2]
[403731169,1769514638519,-1828.19,0.00016438,2]
[403731170,1769514638528,-939.56644343,0.00016438,2]
[403731171,1769514638541,-888.62355657,0.00016438,2]
[403731173,1769514638551,-1828.19,0.00016438,2]
[403731175,1769514638561,-1828.19,0.00016438,2]
[403731177,1769514638570,-1828.19,0.00016438,2]
[403731178,1769514638580,-1828.19,0.00016438,2]
[403731179,1769514638589,-943.82327021,0.00016438,2]
[403731185,1769514638650,-884.36672979,0.00016438,2]
[403731187,1769514638660,-1828.19,0.00016438,2]
[403731188,1769514638669,-1040.64012678,0.00016438,2]
[403731378,1769514640552,-151.0,0.00016053,2]
[403731380,1769514640561,-787.54987322,0.00016438,2]
[403731382,1769514640571,-1828.19,0.00016438,2]
[403731384,1769514640580,-1828.25,0.00016438,2]
[403731386,1769514640590,-500.0,0.00016438,2]
[403731388,1769514640599,-500.0,0.00016438,2]
[403731390,1769514640609,-500.0,0.00016438,2]
[403731392,1769514640619,-638.63038482,0.00016438,2]
[403731394,1769514640628,-500.0,0.00016438,2]
[403731396,1769514640638,-500.0,0.00016438,2]
[403731397,1769514640647,-500.0,0.00016438,2]
[403731398,1769514640657,-500.0,0.00016438,2]
[403731399,1769514640666,-300.51963234,0.00016438,2]
[403731400,1769514640675,-544.2,0.00016438,2]
[403731401,1769514640685,-500.0,0.00016438,2]
[403731402,1769514640695,-800.0,0.00016438,2]
[403731403,1769514640704,-544.2,0.00016712,2]
[403731404,1769514640714,-425.05,0.00016932,2]
[403731405,1769514640724,-250.0,0.00016932,2]
[403731406,1769514640734,-778.86477401,0.00016971,2]
[403731407,1769514640743,-544.2,0.00016986,2]
[403731408,1769514640754,-250.0,0.00017009,2]
[403731409,1769514640765,-166.66,0.00017036,2]
[403731410,1769514640775,-420.0,0.0001705,2]
[403731411,1769514640786,-1680.0,0.00017136,2]
[403731413,1769514640797,-245.52,0.0001714,2]
[403731415,1769514640808,-300.0,0.00017147,2]
[403731417,1769514640819,-195.0,0.00017147,2]
[403731419,1769514640829,-544.2,0.0001726,2]
[403731421,1769514640839,-194.0,0.00017469,2]
[403731423,1769514640848,-544.2,0.00017534,2]
[403731425,1769514640858,-166.66,0.00017598,2]
[403731427,1769514640868,-425.05,0.00017701,2]
[403731429,1769514640878,-544.25,0.00017808,2]
[403731431,1769514640888,-600.0,0.00018,2]
[403731433,1769514640898,-716.0,0.00018087,2]
[403731435,1769514640908,-166.66,0.0001816,2]
[403731436,1769514640919,-425.05,0.00018471,2]
[403731438,1769514640929,-587.0,0.00018649,2]
[403731440,1769514640939,-166.66,0.00018723,2]
[403731442,1769514640948,-2351.0,0.00018838,2]
[403731444,1769514640958,-2673.90742351,0.00018984,2]
[403731446,1769514640967,-163.62,0.00019027,2]
[403731448,1769514640976,-245.52,0.00019045,2]
[403731450,1769514640987,-800.0,0.00019049,2]
[403731452,1769514640996,-163.62,0.00019091,2]
[403731454,1769514641006,-2113.8,0.00019123,2]
[403731456,1769514641018,-163.62,0.00019154,2]
[403731458,1769514641028,-500.0,0.00019178,2]
[403731460,1769514641037,-500.0,0.00019178,2]
[403731462,1769514641047,-500.0,0.00019178,2]
[403731491,1769514641344,-572.11410407,0.00019178,2]
[403731493,1769514641359,-163.62,0.00019218,2]
[403731496,1769514641370,-163.62,0.00019281,2]
[403731498,1769514641380,-166.66,0.00019285,2]
[403731500,1769514641390,-299.99,0.00019339,7]
[403731502,1769514641399,-9451.43,0.00019339,2]
[403731503,1769514641408,-9822.91,0.00019339,2]
[403731506,1769514641418,-163.62,0.00019345,2]
[403731508,1769514641428,-163.62,0.00019408,2]
[403731510,1769514641438,-163.62,0.00019471,2]
[403731512,1769514641448,-163.62,0.00019535,2]
[403731514,1769514641458,-163.62,0.00019598,2]
[403731516,1769514641469,-800.0,0.00019764,2]
[403731518,1769514641480,-166.66,0.00019847,2]
[403731520,1769514641490,-645.0,0.00020398,2]
[403731522,1769514641500,-800.0,0.00020478,2]
[403731524,1769514641510,-310.22,0.00020485,2]
[403731526,1769514641519,-250.44555653,0.00020669,2]
[403731528,1769514641529,-467.0,0.00020709,2]
[403731530,1769514641538,-245.52,0.00020949,2]
[403731532,1769514641547,-150.0,0.00021,7]
[403731534,1769514641557,-800.0,0.00021193,2]
[403731536,1769514641567,-2267.9,0.00021648,2]
[403731538,1769514641577,-800.0,0.00021907,2]
[403731540,1769514641587,-150.12904612,0.00021973,2]
[403731542,1769514641597,-500.0,0.00021973,2]
[403731544,1769514641607,-167.8676369,0.00021973,2]
[403731546,1769514641616,-485.81902535,0.00021973,2]
[403731548,1769514641627,-2673.90742351,0.00021999,2]
[403731550,1769514641637,-159.98208784,0.00022674,2]
[403731552,1769514641647,-245.52,0.00022854,2]
[403731554,1769514641657,-150.0,0.00024658,2]
[403731556,1769514641667,-500.0,0.0002468,2]
[403731558,1769514641677,-2673.90742351,0.00025013,2]
[403731560,1769514641686,-150.0,0.00027123,2]
[403731562,1769514641697,-300.0,0.00027397,2]
[403731564,1769514641709,-500.0,0.00028,120]
[403731566,1769514641718,-2673.90742351,0.00028028,2]
[403731568,1769514641728,-150.0,0.00029589,2]
[403731570,1769514641738,-165.2,0.000298,14]
[403731572,1769514641748,-500.0,0.0003,120]
[403731574,1769514641758,-2673.90742351,0.00031042,2]
[403731576,1769514641768,-3476.0,0.00031639,2]
[403731578,1769514641778,-1408.0,0.00031639,2]
[403731580,1769514641789,-1340.335,0.00031639,2]
[403731582,1769514641799,-615.674,0.00031639,2]
[403731584,1769514641810,-1269.0,0.00031639,2]
[403731586,1769514641819,-184.0,0.00031639,2]
[403731588,1769514641829,-1203.0,0.00031639,2]
[403731590,1769514641840,-916.0,0.00031639,2]
[403731592,1769514641849,-567.0,0.00031639,2]
[403731594,1769514641859,-503.0,0.00031644,2]
[403731596,1769514641869,-500.0,0.00032,120]
[403731598,1769514641879,-218.71,0.00032553,2]
[403731600,1769514641889,-175.27605124,0.00032599,2]
[403731602,1769514641900,-150.0,0.00032987,2]
[403731604,1769514641910,-150.0,0.00032987,2]
[403731606,1769514641921,-150.0,0.00032987,2]
[403731608,1769514641931,-150.0,0.00032987,2]
[403731610,1769514641941,-150.0,0.00032987,2]
[403731612,1769514641951,-150.0,0.00032987,2]
[403731614,1769514641961,-150.0,0.00032987,2]
[403731616,1769514641971,-150.0,0.00032987,2]
[403731618,1769514641981,-150.0,0.00032987,2]
[403731620,1769514641990,-150.0,0.00032987,2]
[403731622,1769514642000,-500.0,0.00032987,2]
[403731624,1769514642010,-150.0,0.00032987,2]
[403731626,1769514642019,-150.0,0.00032987,2]
[403731628,1769514642029,-500.0,0.00032987,2]
[403731630,1769514642039,-500.0,0.00032987,2]
[403731632,1769514642048,-150.0,0.00032987,2]
[403731634,1769514642058,-150.3719537,0.00032987,2]
[403731636,1769514642068,-150.0,0.00032987,2]
[403731638,1769514642077,-150.0,0.00032987,2]
[403731640,1769514642086,-150.0,0.00032987,2]
[403731642,1769514642096,-150.19824857,0.00032987,2]
[403731644,1769514642106,-150.67985043,0.00032987,2]
[403731646,1769514642116,-150.0,0.00032987,2]
[403731648,1769514642126,-150.93589511,0.00032987,2]
[403731650,1769514642135,-213.19994559,0.00032987,2]
[403731652,1769514642145,-150.0,0.00032987,2]
[403731654,1769514642156,-150.24261092,0.00032987,2]
[403731656,1769514642165,-150.22397991,0.00032987,2]
[403731658,1769514642175,-150.26756986,0.00032987,2]
[403731660,1769514642185,-150.0,0.00032987,2]
[403731662,1769514642196,-202.67953144,0.00032987,2]
[403731664,1769514642206,-150.0,0.00032987,2]
[403731666,1769514642216,-500.0,0.00032987,2]
[403731668,1769514642225,-150.0,0.00032987,2]
[403731670,1769514642235,-150.0,0.00032987,2]
[403731672,1769514642245,-500.0,0.00032987,2]
[403731674,1769514642256,-203.27859548,0.00032987,2]
[403731676,1769514642266,-150.0,0.00032987,2]
[403731678,1769514642275,-500.0,0.00032987,2]
[403731680,1769514642285,-500.0,0.00032987,2]
[403731682,1769514642294,-150.0,0.00033042,2]
[403731684,1769514642303,-150.0,0.00033042,2]
[403731686,1769514642313,-150.0,0.00033042,2]
[403731688,1769514642322,-150.0,0.00033042,2]
[403731690,1769514642332,-150.0,0.00033042,2]
[403731692,1769514642341,-150.0,0.00033042,2]
[403731694,1769514642349,-500.0,0.00033042,2]
[403731696,1769514642359,-500.0,0.00033042,2]
[403731698,1769514642368,-500.0,0.00033042,2]
[403731700,1769514642378,-150.0,0.00033042,2]
[403731702,1769514642388,-150.0,0.00033042,2]
[403731704,1769514642399,-150.0,0.00033042,2]
[403731706,1769514642411,-200.0,0.00033042,2]
[403731708,1769514642420,-500.0,0.00033042,2]
[403731710,1769514642431,-150.0,0.00033042,2]
[403731712,1769514642441,-150.0,0.00033042,2]
[403731714,1769514642452,-500.0,0.00033042,2]
[403731716,1769514642462,-500.0,0.00033042,2]
[403731718,1769514642475,-500.0,0.00033042,2]
[403731720,1769514642485,-200.0,0.00033097,2]
[403731722,1769514642496,-200.0,0.00033097,2]
[403731724,1769514642507,-200.0,0.00033097,2]
[403731725,1769514642517,-200.0,0.00033097,2]
[403731728,1769514642529,-150.0,0.00033097,2]
[403731730,1769514642539,-150.0,0.00033097,2]
[403731731,1769514642550,-500.0,0.00033097,2]
[403731733,1769514642561,-500.0,0.00033097,2]
[403731735,1769514642571,-500.0,0.00033097,2]
[403731737,1769514642581,-183.73093878,0.00033097,2]
[403731739,1769514642591,-200.0,0.00033097,2]
[403731741,1769514642601,-150.0,0.00033097,2]
[403731743,1769514642612,-500.0,0.00033097,2]
[403731745,1769514642622,-200.0,0.00033097,2]
[403731747,1769514642632,-200.0,0.00033097,2]
[403731749,1769514642642,-500.0,0.00033097,2]
[403731751,1769514642652,-500.0,0.00033097,2]
[403731753,1769514642662,-500.0,0.00033097,2]
[403731755,1769514642673,-150.0,0.00033151,2]
[403731757,1769514642684,-150.0,0.00033151,2]
[403731759,1769514642694,-500.0,0.00033151,2]
[403731761,1769514642705,-500.0,0.00033151,2]
[403731763,1769514642716,-500.0,0.00033151,2]
[403731765,1769514642726,-150.0,0.00033151,2]
[403731767,1769514642736,-500.0,0.00033151,2]
[403731769,1769514642747,-165.23237875,0.00033151,2]
[403731771,1769514642757,-500.0,0.00033151,2]
[403731773,1769514642767,-500.0,0.00033151,2]
[403731776,1769514642777,-500.0,0.00033206,2]
[403731778,1769514642788,-150.0,0.00033206,2]
[403731780,1769514642797,-511.05918766,0.00033206,2]
[403731782,1769514642807,-252.89279287,0.00033206,2]
[403731784,1769514642817,-500.0,0.00033261,2]
[403731786,1769514642827,-500.0,0.00033316,2]
[403731788,1769514642837,-398.0,0.00033371,2]
[403731790,1769514642847,-500.0,0.00034,120]
[403731792,1769514642858,-2673.90742351,0.00034057,2]
[403731794,1769514642868,-1408.0,0.00034639,2]
[403731796,1769514642878,-1333.0,0.00034639,2]
[403731798,1769514642888,-615.0,0.00034639,2]
[403731800,1769514642898,-567.0,0.00034639,2]
[403731802,1769514642908,-697.0,0.00035619,120]
[403731804,1769514642919,-287.0,0.00035661,120]
[403731806,1769514642928,-500.0,0.00036,120]
[403731808,1769514642940,-287.0,0.00036582,2]
[403731810,1769514642949,-287.0,0.00036589,2]
[403731812,1769514642959,-287.0,0.00036598,2]
[403731814,1769514642969,-1761.0,0.00036776,7]
[403731816,1769514642980,-287.0,0.00036782,2]
[403731818,1769514642990,-287.0,0.00036942,7]
[403731820,1769514643000,-669.09595746,0.00037033,2]
[403731822,1769514643011,-2673.90742351,0.00037071,2]
[403731824,1769514643022,-287.0,0.00037133,2]
[403731826,1769514643032,-697.0,0.00037272,2]
[403731828,1769514643042,-287.0,0.00037389,2]
[403731830,1769514643052,-697.0,0.00037399,2]
[403731832,1769514643062,-287.0,0.00037577,2]
[403731834,1769514643072,-1408.0,0.00037639,2]
[403731836,1769514643083,-1333.0,0.00037639,2]
[403731838,1769514643093,-615.0,0.00037639,2]
[403731840,1769514643103,-287.0,0.00037736,2]
[403731842,1769514643113,-697.0,0.00037822,2]
[403731844,1769514643123,-235.47,0.000379,30]
[403731846,1769514643133,-669.09595743,0.00037914,2]
[403731848,1769514643143,-287.0,0.0003793,2]
[403731850,1769514643154,-500.0,0.00038,120]
[403731852,1769514643164,-287.0,0.00038082,7]
[403731854,1769514643174,-287.0,0.00038111,2]
[403731856,1769514643185,-500.0,0.00038356,60]
[403731858,1769514643196,-500.0,0.00038411,60]
[403731860,1769514643207,-500.0,0.00038466,60]
[403731862,1769514643217,-287.0,0.00038482,7]
[403731865,1769514643230,-1761.0,0.00038508,2]
[403731866,1769514643240,-598.63856126,0.0003852,60]
[403731869,1769514643252,-697.0,0.00038536,2]
[403731871,1769514643262,-150.0,0.00038599,20]
[403731872,1769514643273,-8069.0,0.00038599,20]
[403731874,1769514643284,-155.23325726,0.0003861,30]
[403731876,1769514643294,-287.0,0.00038676,120]
[403731878,1769514643305,-287.0,0.00038708,2]
[403731880,1769514643317,-669.09595743,0.00038795,2]
[403731882,1769514643328,-8069.0,0.00038997,20]
[403731885,1769514643339,-697.0,0.00039004,7]
[403731887,1769514643350,-710.6373,0.00039048,15]
[403731888,1769514643361,-287.0,0.00039246,2]
[403731891,1769514643373,-8069.0,0.00039395,20]
[403731893,1769514643386,-3800.0,0.000395,5]
[403731895,1769514643397,-1618.125,0.00039544,55]
[403731898,1769514643408,-3968.41,0.00039556,2]
[403731899,1769514643419,-669.09595743,0.00039676,2]
[403731902,1769514643431,-8069.0,0.00039793,20]
[403731904,1769514643443,-500.0,0.0004,120]
[403731906,1769514643454,-1911.37082426,0.00040086,15]
[403731908,1769514643467,-2673.90742351,0.00040086,15]
[403731910,1769514643479,-8069.0,0.00040191,20]
[403731912,1769514643491,-500.0,0.00040259,2]
[403731914,1769514643503,-669.09595743,0.00040557,28]
[403731916,1769514643513,-8069.0,0.00040589,20]
[403731918,1769514643523,-1333.0,0.00040639,2]
[403731920,1769514643534,-615.0,0.00040639,2]
[403731922,1769514643546,-1361.2,0.00040855,120]
[403731924,1769514643556,-8069.0,0.00040987,20]
[403731926,1769514643566,-172.11849135,0.00041188,120]
[403731928,1769514643576,-1361.2,0.00041288,120]
[403731930,1769514643586,-225.0,0.000415,120]
[403731932,1769514643597,-2000.0,0.000416,2]
[403731934,1769514643608,-200.0,0.00041635,120]
[403731936,1769514643619,-500.0,0.00041701,60]
[403731938,1769514643630,-500.0,0.00041701,60]
[403731940,1769514643640,-500.0,0.00041701,60]
[403731942,1769514643650,-1361.2,0.00041721,120]
[403731944,1769514643661,-287.79715763,0.00041848,60]
[403731946,1769514643672,-430.5273358,0.00041848,60]
[403731948,1769514643683,-582.516,0.00041848,60]
[403731950,1769514643693,-20350.0,0.00042,5]
[403731952,1769514643704,-500.0,0.00042,120]
[403731954,1769514643716,-5323.574,0.00042,2]
[403731956,1769514643728,-500.0,0.00042,120]
[403731958,1769514643738,-1000.0,0.00042466,30]
[403731960,1769514643749,-11754.70575372,0.00042475,120]
[403731962,1769514643759,-500.0,0.000425,120]
[403731964,1769514643769,-688.1936127,0.00042666,120]
[403731966,1769514643780,-982.0,0.000427,30]
[403731968,1769514643790,-307.0,0.000427,30]
[403731970,1769514643801,-301.0,0.000427,30]
[403731971,1769514643812,-1000.0,0.0004274,30]
[403731972,1769514643825,-500.0,0.00042797,60]
[403731973,1769514643838,-500.0,0.00042797,60]
[403731974,1769514643849,-500.0,0.00042797,60]
[403731975,1769514643861,-200.0,0.00042848,120]
[403731976,1769514643872,-151.0,0.00042974,120]
[403731977,1769514643883,-2904.4835829,0.00042977,2]
[403731978,1769514643894,-7027.2704786,0.00042977,2]
[403731979,1769514643905,-86466.6776186,0.00042977,2]
[403731980,1769514643917,-150.0,0.00042988,30]
[403731981,1769514643928,-172.27,0.00042988,30]
[403731982,1769514643939,-800.0,0.00043,120]
[403731983,1769514643949,-200.0,0.00043,120]
[403731984,1769514643959,-450.0,0.00043,120]
[403731985,1769514643969,-4147.42143719,0.00043,60]
[403731986,1769514643980,-500.0,0.00043,120]
[403731987,1769514643991,-1000.0,0.00043014,30]
[403731988,1769514644001,-174.86897692,0.000431,120]
[403731989,1769514644013,-1117.38315571,0.000431,120]
[403731990,1769514644024,-179.10380509,0.000431,120]
[403731991,1769514644034,-1911.37082426,0.000431,15]
[403731992,1769514644045,-10000.0,0.000431,2]
[403731993,1769514644055,-2673.90742351,0.000431,15]
[403731994,1769514644066,-1547.4720962,0.000431,19]
[403731995,1769514644077,-327.25321652,0.000431,2]
[403731996,1769514644091,-1847.61806955,0.000431,120]
[403731997,1769514644101,-484.80902006,0.000431,2]
[403731998,1769514644111,-357.0,0.00043139,2]
[403731999,1769514644122,-226.0,0.00043155,2]
[403732000,1769514644133,-327.25321651,0.00043169,2]
[403732001,1769514644144,-200.0,0.00043173,60]
[403732002,1769514644154,-256.38582786,0.0004319,7]
[403732003,1769514644166,-151.0,0.00043197,120]
[403732004,1769514644176,-150.0,0.00043197,2]
[403732005,1769514644187,-151.2832091,0.00043197,2]
[403732006,1769514644197,-200.0,0.000432,120]
[403732007,1769514644208,-238515.15353508,0.000432,120]
[403732016,1769514645257,-5605.50649121,0.000432,120]
[403732017,1769514645304,-354.78492556,0.000432,120]
[403732018,1769514645661,-484.80902006,0.00043169,2]
[403732019,1769514645675,-19315.02621905,0.000432,120]
[403732020,1769514645687,-628.28861067,0.000432,120]
[403732021,1769514645701,-289.78000002,0.000432,120]
[403732022,1769514645717,-412.799227,0.000432,120]
[403732023,1769514645730,-4299.15734839,0.000432,120]
[403732024,1769514645742,-468.72833472,0.000432,120]
[403732025,1769514645755,-1158208.77184969,0.000432,120]
[403732026,1769514645767,-160158.83629159,0.000432,120]
[403732027,1769514645780,-662.76,0.000432,120]
[403732028,1769514645792,-6108.436501,0.000432,120]
[403732029,1769514645834,-16319.19524539,0.000432,120]
[403732030,1769514645865,-469.06607036,0.000432,120]
[403732031,1769514645879,-376.00950762,0.000432,120]
[403732032,1769514645890,-500.0,0.000432,120]
[403732033,1769514645905,-7510.30193521,0.000432,120]
[403732034,1769514645923,-4593.71028193,0.000432,120]
[403732043,1769514646666,-6570.0,0.00031639,2]